[Event "World Senior chT-50 2019"]
[Site "Rhodes"]
[Date "2019.04.22"]
[Round "7.40"]
[White "Harstad, Christian"]
[Black "Wolf, Sylvia"]
[Result "0-1"]
[ECO "A61"]
[WhiteElo "1911"]
[BlackElo "2001"]
[Annotator "NA"]
[PlyCount "90"]
[EventDate "2019.04.16"]
[EventType "team-tourn"]
[EventCountry "GRE"]
[SourceTitle "playchess.com"]
[Source "ChessBase"]
[SourceQuality "1"]
[WhiteTeam "Norway"]
[BlackTeam "Germany"]
[WhiteTeamCountry "NOR"]
[BlackTeamCountry "GER"]
[TimeControl "40/5400+30:1800+30"]

1. d4 {[%emt 0:00:00]} Nf6 {[%emt 0:00:00]} 2. c4 {[%emt 0:00:00]} c5 {[%emt 0:00:00]} 3. d5 {[%emt 0:00:10]} e6 {[%emt 0:00:00]} 4. Nc3 {[%emt 0:00:59]} exd5 {[%emt 0:00:00]} 5. cxd5 {[%emt 0:00:16]} d6 {[%emt 0:00:00]} 6. Nf3 {[%emt 0:00:53]} g6 {[%emt 0:00:02]} 7. Bf4 {[%emt 0:00:21]} Bg7 {[%emt 0:01:42]} 8. Qa4+ {[%emt 0:02:21]} Bd7 {[%emt 0:03:53]} 9. Qb3 {[%emt 0:01:38]} Bc8 {[%emt 0:05:37]} 10. h3 {[%emt 0:06:36]} O-O {[%emt 0:01:54]} 11. e3 {[%emt 0:02:44]} a6 {[%emt 0:03:49]} 12. a4 {[%emt 0:04:19]} Qe7 {[%emt 0:05:40]} 13. Nd2 {[%emt 0:05:34]} Nh5 {[%emt 0:09:08]} 14. Bh2 {[%emt 0:02:52]} f5 {[%emt 0:00:15]} 15. Nc4 {[%emt 0:13:15]} f4 {[%emt 0:03:04]} 16. Be2 {[%emt 0:13:29]} fxe3 {[%emt 0:17:08]} 17. Bxh5 {[%emt 0:04:30]} Qh4 {[%emt 0:12:14]} 18. O-O {[%emt 0:10:48]} exf2+ {[%emt 0:00:47]} 19. Kh1 {[%emt 0:00:14]} Qxh5 {[%emt 0:05:17]} 20. Qd1 {[%emt 0:14:41]} Qh4 {[%emt 0:04:36]} 21. Qe2 {[%emt 0:03:14]} Bd4 {[%emt 0:05:08]} 22. Nb6 {[%emt 0:04:46]} Bf5 {[%emt 0:03:07]} 23. g4 {[%emt 0:02:23]} Qxh3 {[%emt 0:03:16]} 24. gxf5 {[%emt 0:00:50]} Rxf5 {[%emt 0:00:01]} 25. Nc8 {[%emt 0:03:00]} Re5 {[%emt 0:00:30]} 26. Ne4 {[%emt 0:01:41]} Nd7 {[%emt 0:04:11]} 27. Ra3 {[%emt 0:00:25]} Qxf1+ {[%emt 0:01:16]} 28. Qxf1 {[%emt 0:00:48]} Rxe4 {[%emt 0:00:02]} 29. Nxd6 {[%emt 0:00:35]} Re1 {[%emt 0:00:46]} 30. Kg2 {[%emt 0:00:27]} Rxf1 {[%emt 0:01:24]} 31. Kxf1 {[%emt 0:00:06]} b6 {[%emt 0:02:33]} 32. Nc4 {[%emt 0:00:17]} Re8 {[%emt 0:00:39]} 33. Ra1 {[%emt 0:00:31]} b5 {[%emt 0:00:40]} 34. Nd6 {[%emt 0:01:10]} Re3 {[%emt 0:02:29]} 35. axb5 {[%emt 0:00:33]} Re1+ {[%emt 0:01:17]} 36. Rxe1 {[%emt 0:00:14]} fxe1=Q+ {[%emt 0:00:04]} 37. Kxe1 {[%emt 0:00:11]} axb5 {[%emt 0:00:50]} 38. b3 {[%emt 0:00:56]} b4 {[%emt 0:00:38]} 39. Ke2 {[%emt 0:00:27]} Be5 {[%emt 0:00:35]} 40. Bxe5 {[%emt 0:00:18]} Nxe5 {[%emt 0:00:02]} 41. Nb7 {[%emt 0:00:27]} Nd7 {[%emt 0:00:32]} 42. Ke3 {[%emt 0:02:38]} Kf7 {[%emt 0:00:29]} 43. Ke4 {[%emt 0:00:37]} Kf6 {[%emt 0:00:24]} 44. Nd8 {[%emt 0:01:31]} h5 {[%emt 0:00:24]} 45. d6 {[%emt 0:01:01]} h4 {[%emt 0:00:48] Kd4 [%emt 00:01:19] Ke5+} 0-1

[Event "World Senior chT-50 2019"]
[Site "Rhodes"]
[Date "2019.04.23"]
[Round "8.1"]
[White "Shabalov, Alexander"]
[Black "Wallner, Joachim"]
[Result "1-0"]
[ECO "D15"]
[WhiteElo "2510"]
[BlackElo "2271"]
[Annotator "ChessBase"]
[PlyCount "49"]
[EventDate "2019.04.16"]
[EventType "team-tourn"]
[EventCountry "GRE"]
[SourceTitle "playchess.com"]
[Source "ChessBase"]
[SourceQuality "1"]
[WhiteTeam "United States"]
[BlackTeam "Austria"]
[WhiteTeamCountry "USA"]
[BlackTeamCountry "AUT"]
[TimeControl "40/5400+30:1800+30"]

1. d4 {[%emt 0:00:44]} d5 {[%emt 0:00:00]} 2. c4 {[%emt 0:00:22]} c6 {[%emt 0:00:00]} 3. Nc3 {[%emt 0:00:24]} Nf6 {[%emt 0:00:00]} 4. Nf3 {[%emt 0:00:07]} a6 {[%emt 0:00:00]} 5. Qc2 {[%emt 0:00:05]} b5 {[%emt 0:02:44]} 6. e4 {[%emt 0:00:05]} b4 {[%emt 0:02:09]} 7. Na4 {[%emt 0:00:26]} Nxe4 {[%emt 0:01:44]} 8. cxd5 {[%emt 0:00:11]} cxd5 {[%emt 0:03:10]} 9. Nb6 {[%emt 0:00:06]} Qxb6 {[%emt 0:01:04]} 10. Qxc8+ {[%emt 0:00:05]} Qd8 {[%emt 0:00:03]} 11. Qb7 {[%emt 0:00:06]} Nd7 {[%emt 0:01:34]} 12. Qxd5 {[%emt 0:00:05]} Nd6 {[%emt 0:04:46]} 13. Ne5 {[%emt 0:12:31]} e6 {[%emt 0:01:28]} 14. Qc6 {[%emt 0:02:08]} Qc8 {[%emt 0:00:47]} 15. Qa4 {[%emt 0:00:12]} f6 {[%emt 0:02:37]} 16. Nf3 {[%emt 0:07:07]} Qb7 {[%emt 0:04:29]} 17. Bd3 {[%emt 0:00:37]} Kf7 {[%emt 0:01:17]} 18. O-O {[%emt 0:00:27]} Nb5 {[%emt 0:02:36]} 19. Re1 {[%emt 0:05:22]} Nb6 {[%emt 0:04:52]} 20. Qb3 {[%emt 0:03:10]} Nd5 {[%emt 0:04:00]} 21. Bd2 {[%emt 0:00:34]} Bd6 {[%emt 0:00:41]} 22. Re4 {[%emt 0:03:08]} Rae8 {[%emt 0:09:40]} 23. Rae1 {[%emt 0:00:55]} a5 {[%emt 0:01:58]} 24. Qa4 {[%emt 0:10:17]} Nbc7 {[%emt 0:01:15]} 25. Qd7+ {[%emt 0:03:29]} 1-0

[Event "World Senior chT-50 2019"]
[Site "Rhodes"]
[Date "2019.04.23"]
[Round "8.3"]
[White "Novikov, Igor"]
[Black "Druckenthaner, Andreas"]
[Result "1-0"]
[ECO "B08"]
[WhiteElo "2563"]
[BlackElo "2304"]
[Annotator "RC"]
[PlyCount "59"]
[EventDate "2019.04.16"]
[EventType "team-tourn"]
[EventCountry "GRE"]
[SourceTitle "playchess.com"]
[Source "ChessBase"]
[SourceQuality "1"]
[WhiteTeam "United States"]
[BlackTeam "Austria"]
[WhiteTeamCountry "USA"]
[BlackTeamCountry "AUT"]
[TimeControl "40/5400+30:1800+30"]

1. d4 {[%emt 0:00:00]} Nc6 {[%emt 0:00:00]} 2. Nf3 {[%emt 0:00:29]} d6 {[%emt 0:00:00]} 3. e4 {[%emt 0:01:01]} Nf6 {[%emt 0:00:19]} 4. Nc3 {[%emt 0:00:30]} g6 {[%emt 0:00:16]} 5. Be2 {[%emt 0:00:48]} Bg7 {[%emt 0:00:11]} 6. O-O {[%emt 0:00:45]} O-O {[%emt 0:00:11]} 7. d5 {[%emt 0:06:40]} Nb8 {[%emt 0:01:37]} 8. h3 {[%emt 0:03:45]} c6 {[%emt 0:05:39]} 9. Bg5 {[%emt 0:04:33]} h6 {[%emt 0:03:21]} 10. Be3 {[%emt 0:01:09]} Nbd7 {[%emt 0:03:34]} 11. Nd4 {[%emt 0:13:08]} Qc7 {[%emt 0:10:47]} 12. Qd2 {[%emt 0:03:46]} Kh7 {[%emt 0:00:13]} 13. a4 {[%emt 0:01:43]} a6 {[%emt 0:13:23]} 14. a5 {[%emt 0:02:15]} Nc5 {[%emt 0:08:07]} 15. Bf3 {[%emt 0:00:40]} cxd5 {[%emt 0:01:55]} 16. exd5 {[%emt 0:01:03]} Ncd7 {[%emt 0:01:01]} 17. Na4 {[%emt 0:04:10]} Ne5 {[%emt 0:03:16]} 18. Nb6 {[%emt 0:00:35]} Nxf3+ {[%emt 0:00:16]} 19. Nxf3 {[%emt 0:00:04]} Rb8 {[%emt 0:00:14]} 20. Ra4 {[%emt 0:06:13]} h5 {[%emt 0:11:30]} 21. Re1 {[%emt 0:02:54]} Bf5 {[%emt 0:04:49]} 22. Rc4 {[%emt 0:04:48]} Qd8 {[%emt 0:00:09]} 23. Bg5 {[%emt 0:08:40]} Re8 {[%emt 0:01:25]} 24. Qf4 {[%emt 0:05:39]} Nd7 {[%emt 0:05:35]} 25. Nxd7 {[%emt 0:03:44]} Qxd7 {[%emt 0:05:50]} 26. g4 {[%emt 0:04:41]} Be5 {[%emt 0:02:13]} 27. Nxe5 {[%emt 0:03:42]} dxe5 {[%emt 0:00:08]} 28. Rxe5 {[%emt 0:00:41]} Qd6 {[%emt 0:11:22]} 29. gxf5 {[%emt 0:00:57]} f6 {[%emt 0:00:05]} 30. Rxe7+ {[%emt 0:00:38]} 1-0

[Event "World Senior chT-50 2019"]
[Site "Rhodes"]
[Date "2019.04.23"]
[Round "8.9"]
[White "Olafsson, Helgi"]
[Black "Strutinskaia, Galina"]
[Result "1-0"]
[ECO "A21"]
[WhiteElo "2506"]
[BlackElo "2208"]
[Annotator "RC"]
[PlyCount "57"]
[EventDate "2019.04.16"]
[EventType "team-tourn"]
[EventCountry "GRE"]
[SourceTitle "playchess.com"]
[Source "ChessBase"]
[SourceQuality "1"]
[WhiteTeam "Iceland"]
[BlackTeam "Russia"]
[WhiteTeamCountry "ISL"]
[BlackTeamCountry "RUS"]
[TimeControl "40/5400+30:1800+30"]

1. c4 {[%emt 0:00:00]} e5 {[%emt 0:01:01]} 2. Nc3 {[%emt 0:00:00]} Bb4 {[%emt 0:00:05]} 3. Nd5 {[%emt 0:00:00]} Bc5 {[%emt 0:00:06]} 4. e3 {[%emt 0:00:06]} c6 {[%emt 0:00:47]} 5. Nc3 {[%emt 0:00:08]} Bb4 {[%emt 0:04:24]} 6. d4 {[%emt 0:05:25]} d6 {[%emt 0:02:54]} 7. Bd3 {[%emt 0:04:13]} f5 {[%emt 0:01:17]} 8. Nge2 {[%emt 0:04:56]} Nf6 {[%emt 0:00:34]} 9. a3 {[%emt 0:03:11]} Ba5 {[%emt 0:01:20]} 10. b4 {[%emt 0:01:15]} Bc7 {[%emt 0:00:06]} 11. d5 {[%emt 0:00:10]} a5 {[%emt 0:02:02]} 12. Rb1 {[%emt 0:02:09]} O-O {[%emt 0:03:14]} 13. Bc2 {[%emt 0:07:49]} cxd5 {[%emt 0:05:51]} 14. cxd5 {[%emt 0:05:38]} axb4 {[%emt 0:03:34]} 15. axb4 {[%emt 0:01:00]} Qe8 {[%emt 0:02:43]} 16. O-O {[%emt 0:00:58]} Qh5 {[%emt 0:01:40]} 17. f3 {[%emt 0:02:20]} Ne8 {[%emt 0:07:09]} 18. f4 {[%emt 0:05:48]} Nd7 {[%emt 0:01:55]} 19. Qe1 {[%emt 0:04:44]} g6 {[%emt 0:08:53]} 20. e4 {[%emt 0:02:17]} fxe4 {[%emt 0:05:29]} 21. Nxe4 {[%emt 0:01:02]} Ndf6 {[%emt 0:05:05]} 22. fxe5 {[%emt 0:08:53]} Bb6+ {[%emt 0:10:35]} 23. Kh1 {[%emt 0:00:12]} Nxe4 {[%emt 0:01:27]} 24. Rxf8+ {[%emt 0:00:22]} Kxf8 {[%emt 0:00:02]} 25. Bxe4 {[%emt 0:00:11]} Qxe5 {[%emt 0:01:09]} 26. Qh4 {[%emt 0:03:51]} Bd8 {[%emt 0:03:44]} 27. Qxd8 {[%emt 0:09:26]} Qxe4 {[%emt 0:00:06]} 28. Bh6+ {[%emt 0:00:09]} Kg8 {[%emt 0:00:08]} 29. Nc3 {[%emt 0:01:20]} 1-0

[Event "World Senior chT-50 2019"]
[Site "Rhodes"]
[Date "2019.04.23"]
[Round "8.12"]
[White "Fatalibekova, Elena"]
[Black "Arnason, Jon L"]
[Result "1/2-1/2"]
[ECO "A38"]
[WhiteElo "2148"]
[BlackElo "2423"]
[Annotator "ChessBase"]
[PlyCount "60"]
[EventDate "2019.04.16"]
[EventType "team-tourn"]
[EventCountry "GRE"]
[SourceTitle "playchess.com"]
[Source "ChessBase"]
[SourceQuality "1"]
[WhiteTeam "Russia"]
[BlackTeam "Iceland"]
[WhiteTeamCountry "RUS"]
[BlackTeamCountry "ISL"]
[TimeControl "40/5400+30:1800+30"]

1. Nf3 {[%emt 0:00:00]} c5 {[%emt 0:00:00]} 2. c4 {[%emt 0:00:00]} Nc6 {[%emt 0:00:12]} 3. Nc3 {[%emt 0:00:02]} Nf6 {[%emt 0:01:02]} 4. g3 {[%emt 0:01:54]} d5 {[%emt 0:04:43]} 5. cxd5 {[%emt 0:00:07]} Nxd5 {[%emt 0:00:03]} 6. Bg2 {[%emt 0:00:06]} Nc7 {[%emt 0:00:21]} 7. d3 {[%emt 0:00:29]} g6 {[%emt 0:02:15]} 8. O-O {[%emt 0:00:12]} Bg7 {[%emt 0:00:08]} 9. Bd2 {[%emt 0:08:23]} O-O {[%emt 0:00:57]} 10. Qa4 {[%emt 0:00:30]} e5 {[%emt 0:11:59]} 11. Ne4 {[%emt 0:04:59]} Qe7 {[%emt 0:08:36]} 12. Rac1 {[%emt 0:00:09]} Ne6 {[%emt 0:02:03]} 13. Be3 {[%emt 0:15:22]} Ncd4 {[%emt 0:05:19]} 14. Nxd4 {[%emt 0:00:40]} exd4 {[%emt 0:01:51]} 15. Bd2 {[%emt 0:02:02]} Bd7 {[%emt 0:05:07]} 16. Qb3 {[%emt 0:06:33]} b6 {[%emt 0:07:00]} 17. f4 {[%emt 0:00:21]} Nc7 {[%emt 0:03:23]} 18. Rce1 {[%emt 0:01:41]} h6 {[%emt 0:01:46]} 19. e3 {[%emt 0:01:45]} Be6 {[%emt 0:00:28]} 20. Qa3 {[%emt 0:00:58]} dxe3 {[%emt 0:01:39]} 21. Bxe3 {[%emt 0:00:03]} Nd5 {[%emt 0:00:17]} 22. Bf2 {[%emt 0:00:30]} Nb4 {[%emt 0:01:08]} 23. Rd1 {[%emt 0:05:56]} Rad8 {[%emt 0:00:24]} 24. Kh1 {[%emt 0:08:48]} a5 {[%emt 0:02:38]} 25. Rd2 {[%emt 0:01:44]} Bxa2 {[%emt 0:02:28]} 26. b3 {[%emt 0:02:38]} f5 {[%emt 0:00:59]} 27. Nxc5 {[%emt 0:02:24]} bxc5 {[%emt 0:00:20]} 28. Rxa2 {[%emt 0:01:17]} Nxa2 {[%emt 0:01:14]} 29. Qxa2 {[%emt 0:00:02]} Rxd3 {[%emt 0:02:20]} 30. Bxc5 {[%emt 0:04:47]} Qf7 {[%emt 0:11:43]} 1/2-1/2

[Event "World Senior chT-50 2019"]
[Site "Rhodes"]
[Date "2019.04.23"]
[Round "8.13"]
[White "Vaganian, Rafael A"]
[Black "Grant, Jonathan I M"]
[Result "1-0"]
[ECO "B37"]
[WhiteElo "2535"]
[BlackElo "2226"]
[Annotator "ChessBase"]
[PlyCount "81"]
[EventDate "2019.04.16"]
[EventType "team-tourn"]
[EventCountry "GRE"]
[SourceTitle "playchess.com"]
[Source "ChessBase"]
[SourceQuality "1"]
[WhiteTeam "Armenia"]
[BlackTeam "Scotland"]
[WhiteTeamCountry "ARM"]
[BlackTeamCountry "SCO"]
[TimeControl "40/5400+30:1800+30"]

1. Nf3 {[%emt 0:00:00]} c5 {[%emt 0:00:00]} 2. c4 {[%emt 0:00:42]} Nc6 {[%emt 0:00:21]} 3. Nc3 {[%emt 0:00:26]} g6 {[%emt 0:00:10]} 4. d4 {[%emt 0:01:52]} cxd4 {[%emt 0:00:08]} 5. Nxd4 {[%emt 0:00:04]} Bg7 {[%emt 0:00:14]} 6. Nc2 {[%emt 0:00:01]} Nf6 {[%emt 0:01:16]} 7. e4 {[%emt 0:01:33]} O-O {[%emt 0:00:14]} 8. Be2 {[%emt 0:00:03]} d6 {[%emt 0:02:26]} 9. Be3 {[%emt 0:04:46]} Be6 {[%emt 0:05:48]} 10. f3 {[%emt 0:05:52]} Qa5 {[%emt 0:04:12]} 11. Qd2 {[%emt 0:01:59]} Rfc8 {[%emt 0:04:46]} 12. Nd5 {[%emt 0:03:20]} Qd8 {[%emt 0:11:17]} 13. Rb1 {[%emt 0:06:41]} Nd7 {[%emt 0:17:28]} 14. Nf4 {[%emt 0:05:39]} Nf8 {[%emt 0:01:45]} 15. O-O {[%emt 0:00:36]} Ne5 {[%emt 0:04:17]} 16. b3 {[%emt 0:01:56]} Bd7 {[%emt 0:05:49]} 17. Kh1 {[%emt 0:01:05]} Ne6 {[%emt 0:02:19]} 18. Nd5 {[%emt 0:01:59]} Nc6 {[%emt 0:02:02]} 19. Rbd1 {[%emt 0:01:18]} Be8 {[%emt 0:07:06]} 20. Bh6 {[%emt 0:08:40]} Bh8 {[%emt 0:00:53]} 21. f4 {[%emt 0:01:56]} Ned4 {[%emt 0:03:10]} 22. Nxd4 {[%emt 0:01:47]} Nxd4 {[%emt 0:00:11]} 23. Bg5 {[%emt 0:04:02]} Nc6 {[%emt 0:02:27]} 24. e5 {[%emt 0:01:03]} f6 {[%emt 0:03:11]} 25. exf6 {[%emt 0:02:11]} exf6 {[%emt 0:00:20]} 26. Bh4 {[%emt 0:00:03]} Bf7 {[%emt 0:07:14]} 27. Bg4 {[%emt 0:00:41]} Rcb8 {[%emt 0:00:45]} 28. Rfe1 {[%emt 0:08:18]} b5 {[%emt 0:05:56]} 29. Be6 {[%emt 0:01:40]} bxc4 {[%emt 0:00:30]} 30. Bxf7+ {[%emt 0:03:29]} Kxf7 {[%emt 0:00:08]} 31. Qe2 {[%emt 0:00:30]} Qd7 {[%emt 0:08:25]} 32. Qxc4 {[%emt 0:00:25]} Na5 {[%emt 0:00:36]} 33. Qc7 {[%emt 0:01:05]} Qxc7 {[%emt 0:00:34]} 34. Nxc7 {[%emt 0:00:10]} Nb7 {[%emt 0:00:23]} 35. b4 {[%emt 0:00:18]} a5 {[%emt 0:00:22]} 36. Nxa8 {[%emt 0:00:06]} Rxa8 {[%emt 0:00:09]} 37. Rc1 {[%emt 0:00:02]} Nd8 {[%emt 0:00:53]} 38. Rc7+ {[%emt 0:00:11]} Kf8 {[%emt 0:00:27]} 39. b5 {[%emt 0:00:09]} Rb8 {[%emt 0:00:45]} 40. a4 {[%emt 0:00:00]} h6 {[%emt 0:00:00]} 41. Rec1 {[%emt 0:01:22]} 1-0

[Event "World Senior chT-50 2019"]
[Site "Rhodes"]
[Date "2019.04.23"]
[Round "8.16"]
[White "Smith, Peter R"]
[Black "Kalantaryan, Norayr"]
[Result "0-1"]
[ECO "B00"]
[WhiteElo "2038"]
[BlackElo "2377"]
[Annotator "RC"]
[PlyCount "114"]
[EventDate "2019.04.16"]
[EventType "team-tourn"]
[EventCountry "GRE"]
[SourceTitle "playchess.com"]
[Source "ChessBase"]
[SourceQuality "1"]
[WhiteTeam "Scotland"]
[BlackTeam "Armenia"]
[WhiteTeamCountry "SCO"]
[BlackTeamCountry "ARM"]
[TimeControl "40/5400+30:1800+30"]

1. Nf3 {[%emt 0:00:00]} Nc6 {[%emt 0:00:00]} 2. d4 {[%emt 0:00:00]} d6 {[%emt 0:00:00]} 3. e4 {[%emt 0:00:19]} Nf6 {[%emt 0:00:00]} 4. Nc3 {[%emt 0:00:12]} Bg4 {[%emt 0:00:00]} 5. Be3 {[%emt 0:00:15]} e5 {[%emt 0:00:07]} 6. d5 {[%emt 0:02:33]} Ne7 {[%emt 0:00:05]} 7. Be2 {[%emt 0:00:55]} Nc8 {[%emt 0:01:28]} 8. h3 {[%emt 0:02:31]} Bd7 {[%emt 0:00:04]} 9. Qd2 {[%emt 0:02:53]} Be7 {[%emt 0:00:05]} 10. O-O {[%emt 0:01:36]} O-O {[%emt 0:01:20]} 11. Rad1 {[%emt 0:03:53]} c5 {[%emt 0:06:24]} 12. dxc6 {[%emt 0:04:25]} Bxc6 {[%emt 0:01:44]} 13. Qd3 {[%emt 0:03:52]} a6 {[%emt 0:08:28]} 14. Bg5 {[%emt 0:03:04]} Ne8 {[%emt 0:15:30]} 15. Bxe7 {[%emt 0:03:32]} Qxe7 {[%emt 0:00:05]} 16. Nd5 {[%emt 0:00:44]} Bxd5 {[%emt 0:08:28]} 17. Qxd5 {[%emt 0:00:20]} Nf6 {[%emt 0:04:32]} 18. Qd3 {[%emt 0:01:19]} d5 {[%emt 0:05:30]} 19. Nd2 {[%emt 0:01:59]} d4 {[%emt 0:04:42]} 20. f4 {[%emt 0:12:26]} Na7 {[%emt 0:16:31]} 21. fxe5 {[%emt 0:04:20]} Qxe5 {[%emt 0:00:54]} 22. Nf3 {[%emt 0:05:10]} Qxe4 {[%emt 0:04:38]} 23. Qxe4 {[%emt 0:00:41]} Nxe4 {[%emt 0:00:04]} 24. Nxd4 {[%emt 0:00:40]} Ng3 {[%emt 0:01:27]} 25. Rf3 {[%emt 0:01:05]} Nxe2+ {[%emt 0:00:17]} 26. Nxe2 {[%emt 0:00:01]} Nc6 {[%emt 0:01:23]} 27. Rb3 {[%emt 0:06:33]} b5 {[%emt 0:02:18]} 28. a4 {[%emt 0:06:41]} bxa4 {[%emt 0:03:14]} 29. Rb6 {[%emt 0:09:33]} Ne5 {[%emt 0:01:09]} 30. Rd4 {[%emt 0:02:17]} Rfc8 {[%emt 0:00:47]} 31. c3 {[%emt 0:02:58]} a3 {[%emt 0:02:56]} 32. bxa3 {[%emt 0:00:17]} Nc4 {[%emt 0:00:21]} 33. Rb3 {[%emt 0:06:51]} g6 {[%emt 0:00:15]} 34. a4 {[%emt 0:00:19]} Ra7 {[%emt 0:02:00]} 35. Rb4 {[%emt 0:01:16]} Ne5 {[%emt 0:00:24]} 36. Rb6 {[%emt 0:01:38]} Kg7 {[%emt 0:00:43]} 37. Rbd6 {[%emt 0:03:23]} Rcc7 {[%emt 0:01:10]} 38. Rb4 {[%emt 0:01:57]} a5 {[%emt 0:07:10]} 39. Rb5 {[%emt 0:01:32]} Nc4 {[%emt 0:00:07]} 40. Rdd5 {[%emt 0:00:00]} Ra6 {[%emt 0:00:00]} 41. Nd4 {[%emt 0:03:51]} Ra8 {[%emt 0:05:07]} 42. Nb3 {[%emt 0:03:26]} Rac8 {[%emt 0:05:05]} 43. Nxa5 {[%emt 0:02:12]} Nxa5 {[%emt 0:00:35]} 44. Rxa5 {[%emt 0:00:01]} Rxc3 {[%emt 0:00:08]} 45. Ra7 {[%emt 0:02:27]} Rc1+ {[%emt 0:00:04]} 46. Kh2 {[%emt 0:01:41]} h5 {[%emt 0:00:59]} 47. h4 {[%emt 0:04:29]} R8c4 {[%emt 0:00:34]} 48. Rd3 {[%emt 0:06:05]} Rxh4+ {[%emt 0:00:29]} 49. Rh3 {[%emt 0:00:47]} Rf4 {[%emt 0:00:16]} 50. a5 {[%emt 0:01:48]} Rc2 {[%emt 0:04:39]} 51. Rb7 {[%emt 0:02:26]} Ra2 {[%emt 0:01:07]} 52. Rb5 {[%emt 0:00:42]} Kh6 {[%emt 0:03:58]} 53. Rhb3 {[%emt 0:04:35]} Rfa4 {[%emt 0:05:02]} 54. Rf3 {[%emt 0:02:33]} f5 {[%emt 0:00:05]} 55. Rg3 {[%emt 0:01:22]} h4 {[%emt 0:01:42]} 56. Rh3 {[%emt 0:01:22]} Kg5 {[%emt 0:03:01]} 57. Rc5 {[%emt 0:00:57]} Rg4 {[%emt 0:00:47]} 0-1

[Event "World Senior chT-50 2019"]
[Site "Rhodes"]
[Date "2019.04.23"]
[Round "8.19"]
[White "Plaskett, H James"]
[Black "Hrisanthopoulos, Dimitrios"]
[Result "1/2-1/2"]
[ECO "B30"]
[WhiteElo "2437"]
[BlackElo "1995"]
[Annotator "ChessBase"]
[PlyCount "35"]
[EventDate "2019.04.16"]
[EventType "team-tourn"]
[EventCountry "GRE"]
[SourceTitle "playchess.com"]
[Source "ChessBase"]
[SourceQuality "1"]
[WhiteTeam "England"]
[BlackTeam "Greece"]
[WhiteTeamCountry "ENG"]
[BlackTeamCountry "GRE"]
[TimeControl "40/5400+30:1800+30"]

1. e4 {[%emt 0:04:11]} c5 {[%emt 0:00:00]} 2. Nc3 {[%emt 0:00:08]} Nc6 {[%emt 0:00:03]} 3. Bb5 {[%emt 0:00:15]} Nd4 {[%emt 0:00:21]} 4. Nf3 {[%emt 0:00:06]} a6 {[%emt 0:00:56]} 5. Bc4 {[%emt 0:02:07]} e6 {[%emt 0:03:01]} 6. d3 {[%emt 0:09:25]} b5 {[%emt 0:05:06]} 7. Bb3 {[%emt 0:00:11]} g6 {[%emt 0:00:21]} 8. Nxd4 {[%emt 0:01:40]} cxd4 {[%emt 0:00:16]} 9. Ne2 {[%emt 0:00:02]} Bg7 {[%emt 0:00:46]} 10. a4 {[%emt 0:00:10]} Bb7 {[%emt 0:01:46]} 11. O-O {[%emt 0:00:19]} Ne7 {[%emt 0:01:06]} 12. Bg5 {[%emt 0:00:31]} h6 {[%emt 0:02:11]} 13. Bf4 {[%emt 0:03:24]} d5 {[%emt 0:03:38]} 14. exd5 {[%emt 0:14:09]} Nxd5 {[%emt 0:01:11]} 15. Bd2 {[%emt 0:00:09]} O-O {[%emt 0:01:06]} 16. axb5 {[%emt 0:03:50]} axb5 {[%emt 0:00:23]} 17. Rxa8 {[%emt 0:00:19]} Bxa8 {[%emt 0:15:17]} 18. Nf4 {[%emt 0:15:05]} 1/2-1/2

[Event "World Senior chT-50 2019"]
[Site "Rhodes"]
[Date "2019.04.23"]
[Round "8.26"]
[White "Fraser-Mitchell, Jeremy N"]
[Black "Wallace, John Paul"]
[Result "0-1"]
[ECO "E81"]
[WhiteElo "2073"]
[BlackElo "2350"]
[Annotator "RC"]
[PlyCount "50"]
[EventDate "2019.04.16"]
[EventType "team-tourn"]
[EventCountry "GRE"]
[SourceTitle "playchess.com"]
[Source "ChessBase"]
[SourceQuality "1"]
[WhiteTeam "ENG"]
[BlackTeam "IRL"]
[WhiteTeamCountry "ENG"]
[BlackTeamCountry "AUS"]
[TimeControl "40/5400+30:1800+30"]

1. d4 {[%emt 0:00:41]} Nf6 {[%emt 0:00:00]} 2. c4 {[%emt 0:00:06]} g6 {[%emt 0:00:00]} 3. Nc3 {[%emt 0:00:04]} Bg7 {[%emt 0:00:00]} 4. e4 {[%emt 0:00:06]} d6 {[%emt 0:00:00]} 5. f3 {[%emt 0:00:03]} O-O {[%emt 0:00:06]} 6. Bg5 {[%emt 0:00:02]} c5 {[%emt 0:03:47]} 7. d5 {[%emt 0:00:06]} e6 {[%emt 0:00:12]} 8. Qd2 {[%emt 0:00:10]} Qa5 {[%emt 0:00:17]} 9. Nge2 {[%emt 0:04:34]} exd5 {[%emt 0:00:28]} 10. cxd5 {[%emt 0:00:16]} Bd7 {[%emt 0:05:36]} 11. Nc1 {[%emt 0:03:54]} b5 {[%emt 0:13:06]} 12. Be2 {[%emt 0:01:34]} c4 {[%emt 0:04:39]} 13. Nd1 {[%emt 0:11:08]} Qc7 {[%emt 0:03:10]} 14. O-O {[%emt 0:01:50]} Na6 {[%emt 0:01:26]} 15. a3 {[%emt 0:08:39]} Nc5 {[%emt 0:01:16]} 16. Rb1 {[%emt 0:12:46]} Rfc8 {[%emt 0:15:25]} 17. b3 {[%emt 0:14:35]} Nfxe4 {[%emt 0:09:02]} 18. fxe4 {[%emt 0:00:44]} Nxe4 {[%emt 0:00:06]} 19. Qf4 {[%emt 0:00:45]} Nxg5 {[%emt 0:04:14]} 20. Qxg5 {[%emt 0:00:26]} c3 {[%emt 0:06:08]} 21. Nxc3 {[%emt 0:02:42]} Qxc3 {[%emt 0:00:53]} 22. Nd3 {[%emt 0:02:26]} Qd4+ {[%emt 0:06:27]} 23. Kh1 {[%emt 0:00:02]} Rc2 {[%emt 0:05:33]} 24. Rf4 {[%emt 0:10:20]} Qe3 {[%emt 0:00:00]} 25. Bf1 {[%emt 0:00:58]} Bd4 {[%emt 0:00:00]} 0-1

[Event "World Senior chT-50 2019"]
[Site "Rhodes"]
[Date "2019.04.23"]
[Round "8.27"]
[White "MacElligott, Gerard"]
[Black "Jackson, Sheila"]
[Result "1/2-1/2"]
[ECO "E38"]
[WhiteElo "2025"]
[BlackElo "2051"]
[Annotator "NA RC"]
[PlyCount "38"]
[EventDate "2019.04.16"]
[EventType "team-tourn"]
[EventCountry "GRE"]
[SourceTitle "playchess.com"]
[Source "ChessBase"]
[SourceQuality "1"]
[WhiteTeam "Ireland"]
[BlackTeam "England"]
[WhiteTeamCountry "IRL"]
[BlackTeamCountry "ENG"]
[TimeControl "40/5400+30:1800+30"]

1. d4 {[%emt 4:26:36]} Nf6 {[%emt 0:00:06]} 2. c4 {[%emt 0:00:11]} e6 {[%emt 0:00:06]} 3. Nc3 {[%emt 0:00:33]} Bb4 {[%emt 0:01:38]} 4. Qc2 {[%emt 0:00:38]} c5 {[%emt 0:03:39]} 5. dxc5 {[%emt 0:01:46]} Bxc5 {[%emt 0:03:40]} 6. Nf3 {[%emt 0:02:52]} Qb6 {[%emt 0:10:57]} 7. e3 {[%emt 0:09:20]} Nc6 {[%emt 0:01:31]} 8. a3 {[%emt 0:01:27]} Be7 {[%emt 0:02:40]} 9. e4 {[%emt 0:05:48]} d6 {[%emt 0:03:24]} 10. Be3 {[%emt 0:04:36]} Qa5 {[%emt 0:03:42]} 11. h3 {[%emt 0:02:00]} O-O {[%emt 0:03:23]} 12. Be2 {[%emt 0:08:32]} d5 {[%emt 0:14:46]} 13. O-O {[%emt 0:01:09]} dxe4 {[%emt 0:10:51]} 14. Nxe4 {[%emt 0:00:23]} Nxe4 {[%emt 0:00:29]} 15. Qxe4 {[%emt 0:00:07]} f5 {[%emt 0:04:38]} 16. Qc2 {[%emt 0:00:54]} Bf6 {[%emt 0:06:09]} 17. Bd2 {[%emt 0:04:16]} Qc7 {[%emt 0:00:12]} 18. Bc3 {[%emt 0:00:25]} e5 {[%emt 0:03:08]} 19. Rfd1 {[%emt 0:04:13]} a5 {[%emt 0:00:36]} 1/2-1/2